[Event "*** Titled Tuesday Blitz"]
[Site "Chess.com"]
[Date "2021.03.02"]
[Round "4"]
[White "johnathan113"]
[Black "anon219"]
[Result "0-1"]
[WhiteElo "2616"]
[BlackElo "2851"]
[TimeControl "180+1"]
[EndTime "10:40:29 PST"]
[Termination "anon219 won on time"]

1. e4 {[%clk 0:03:00.9]} 1... c5 {[%clk 0:02:58.2]} 2. Nf3 {[%clk 0:03:00]} 2...
a6 {[%clk 0:02:53]} 3. g3 {[%clk 0:02:57.7]} 3... d6 {[%clk 0:02:48.7]} 4. Bg2
{[%clk 0:02:54.7]} 4... Nf6 {[%clk 0:02:48.1]} 5. Nc3 {[%clk 0:02:53.2]} 5...
Nc6 {[%clk 0:02:27.2]} 6. h3 {[%clk 0:02:48.4]} 6... e6 {[%clk 0:02:23.6]} 7.
O-O {[%clk 0:02:47.1]} 7... Be7 {[%clk 0:02:13.9]} 8. d4 {[%clk 0:02:47.2]} 8...
cxd4 {[%clk 0:02:10.7]} 9. Nxd4 {[%clk 0:02:48.1]} 9... Qc7 {[%clk 0:02:11.3]}
10. Nb3 {[%clk 0:02:33.1]} 10... O-O {[%clk 0:02:05.4]} 11. g4 {[%clk 0:02:30]}
11... b5 {[%clk 0:02:03.1]} 12. g5 {[%clk 0:02:30]} 12... Nd7 {[%clk 0:02:01.4]}
13. f4 {[%clk 0:02:30.4]} 13... b4 {[%clk 0:01:59.9]} 14. Ne2 {[%clk 0:02:30.3]}
14... Bb7 {[%clk 0:01:59.6]} 15. h4 {[%clk 0:02:26.5]} 15... a5 {[%clk
0:01:58.1]} 16. Be3 {[%clk 0:02:17.7]} 16... Rfe8 {[%clk 0:01:48.6]} 17. f5
{[%clk 0:02:14.8]} 17... exf5 {[%clk 0:01:47.2]} 18. Rxf5 {[%clk 0:02:03.9]}
18... Nce5 {[%clk 0:01:43.6]} 19. Nbd4 {[%clk 0:01:51.4]} 19... Rac8 {[%clk
0:01:31.7]} 20. b3 {[%clk 0:01:46.9]} 20... Bf8 {[%clk 0:01:24.3]} 21. Qd2
{[%clk 0:01:40.2]} 21... g6 {[%clk 0:01:17.5]} 22. Rf4 {[%clk 0:01:33.9]} 22...
d5 {[%clk 0:01:10.9]} 23. exd5 {[%clk 0:01:25.7]} 23... Nb6 {[%clk 0:01:11.1]}
24. Nb5 {[%clk 0:01:17.1]} 24... Qd8 {[%clk 0:01:10.1]} 25. d6 {[%clk
0:00:45.1]} 25... Bxg2 {[%clk 0:01:05.1]} 26. Kxg2 {[%clk 0:00:46]} 26... Nec4
{[%clk 0:00:59.1]} 27. Bxb6 {[%clk 0:00:15.7]} 27... Nxd2 {[%clk 0:00:51.2]} 28.
Bxd8 {[%clk 0:00:14.8]} 28... Rxe2+ {[%clk 0:00:50.7]} 29. Rf2 {[%clk
0:00:13.6]} 29... Rxf2+ {[%clk 0:00:50.1]} 30. Kxf2 {[%clk 0:00:14.5]} 30...
Rxd8 {[%clk 0:00:50.4]} 31. Ke3 {[%clk 0:00:15]} 31... Bxd6 {[%clk 0:00:42.2]}
32. Rd1 {[%clk 0:00:15.6]} 32... Be5 {[%clk 0:00:37.6]} 33. Ke2 {[%clk
0:00:12.7]} 33... Bf4 {[%clk 0:00:34.7]} 34. Na7 {[%clk 0:00:08.7]} 34... Re8+
{[%clk 0:00:33.7]} 35. Kf2 {[%clk 0:00:08.6]} 35... Be3+ {[%clk 0:00:33.9]} 36.
Kg2 {[%clk 0:00:08.5]} 36... Bxa7 {[%clk 0:00:34.5]} 37. Rxd2 {[%clk 0:00:09.2]}
37... Kg7 {[%clk 0:00:34.3]} 38. Kf3 {[%clk 0:00:08.7]} 38... Re3+ {[%clk
0:00:34]} 39. Kf4 {[%clk 0:00:09.3]} 39... Rc3 {[%clk 0:00:34.2]} 40. Re2 {[%clk
0:00:09.5]} 40... h6 {[%clk 0:00:31.3]} 41. Kg4 {[%clk 0:00:04]} 41... hxg5
{[%clk 0:00:30.2]} 42. hxg5 {[%clk 0:00:04.9]} 42... Bb6 {[%clk 0:00:28]} 43.
Rd2 {[%clk 0:00:04.7]} 43... Bc7 {[%clk 0:00:27.2]} 44. Kh4 {[%clk 0:00:03.7]}
44... Bf4 {[%clk 0:00:23.3]} 45. Rf2 {[%clk 0:00:04]} 45... Be3 {[%clk
0:00:22.5]} 46. Re2 {[%clk 0:00:03.6]} 46... f6 {[%clk 0:00:23.1]} 47. gxf6+
{[%clk 0:00:03.7]} 47... Kxf6 {[%clk 0:00:24]} 48. Kg4 {[%clk 0:00:04.3]} 48...
g5 {[%clk 0:00:24]} 49. Kf3 {[%clk 0:00:04.3]} 49... Bf4+ {[%clk 0:00:23.9]} 50.
Kg4 {[%clk 0:00:05]} 50... Rg3+ {[%clk 0:00:22.9]} 51. Kh5 {[%clk 0:00:05.5]}
51... Rh3+ {[%clk 0:00:23.5]} 52. Kg4 {[%clk 0:00:06.1]} 52... Rh4+ {[%clk
0:00:22.1]} 53. Kf3 {[%clk 0:00:06.5]} 53... Kf5 {[%clk 0:00:22.7]} 54. Re8
{[%clk 0:00:05.2]} 54... Rh3+ {[%clk 0:00:23.1]} 55. Kf2 {[%clk 0:00:06]} 55...
Rh2+ {[%clk 0:00:23.6]} 56. Kf1 {[%clk 0:00:04.3]} 56... Rxc2 {[%clk 0:00:23.5]}
57. Ra8 {[%clk 0:00:02.7]} 57... Rxa2 {[%clk 0:00:23.2]} 58. Rc8 {[%clk
0:00:02.5]} 58... Kg4 {[%clk 0:00:23.5]} 59. Rc2 {[%clk 0:00:02]} 59... Rxc2
{[%clk 0:00:22.9]} 0-1

[Event "*** Titled Tuesday Blitz"]
[Site "Chess.com"]
[Date "2021.03.02"]
[Round "4"]
[White "ShimanovAlex"]
[Black "eduardoperalta"]
[Result "1-0"]
[WhiteElo "2803"]
[BlackElo "2535"]
[TimeControl "180+1"]
[EndTime "10:40:29 PST"]
[Termination "ShimanovAlex won on time"]

1. d4 {[%clk 0:03:00.9]} 1... Nf6 {[%clk 0:02:58.6]} 2. Bg5 {[%clk 0:03:00.3]}
2... Ne4 {[%clk 0:02:57.7]} 3. Bf4 {[%clk 0:03:00.3]} 3... d5 {[%clk 0:02:55.8]}
4. e3 {[%clk 0:03:00]} 4... g6 {[%clk 0:02:52.9]} 5. Bd3 {[%clk 0:02:59.9]} 5...
Bg7 {[%clk 0:02:52.4]} 6. Nd2 {[%clk 0:02:59.7]} 6... Nxd2 {[%clk 0:02:49.5]} 7.
Qxd2 {[%clk 0:03:00.6]} 7... O-O {[%clk 0:02:49.5]} 8. h4 {[%clk 0:03:00.1]}
8... Nd7 {[%clk 0:02:46.2]} 9. h5 {[%clk 0:02:59.7]} 9... Nf6 {[%clk 0:02:44.1]}
10. hxg6 {[%clk 0:02:59.8]} 10... hxg6 {[%clk 0:02:42.5]} 11. Be5 {[%clk
0:02:57.8]} 11... b6 {[%clk 0:02:40.6]} 12. Ne2 {[%clk 0:02:53.8]} 12... c5
{[%clk 0:02:40.1]} 13. c3 {[%clk 0:02:53.9]} 13... a5 {[%clk 0:02:38]} 14. f3
{[%clk 0:02:52.6]} 14... a4 {[%clk 0:02:36.8]} 15. a3 {[%clk 0:02:52.1]} 15...
Ba6 {[%clk 0:02:03]} 16. Bc2 {[%clk 0:02:50.1]} 16... Bxe2 {[%clk 0:01:58.2]}
17. Kxe2 {[%clk 0:02:48.8]} 17... Nd7 {[%clk 0:01:52.3]} 18. Bxg7 {[%clk
0:02:43.9]} 18... Kxg7 {[%clk 0:01:51.9]} 19. e4 {[%clk 0:02:43.8]} 19... Rh8
{[%clk 0:01:50.5]} 20. exd5 {[%clk 0:02:43.8]} 20... cxd4 {[%clk 0:01:48.6]} 21.
Qxd4+ {[%clk 0:02:43.8]} 21... Nf6 {[%clk 0:01:48.3]} 22. Be4 {[%clk 0:02:37.2]}
22... Qd6 {[%clk 0:01:43.7]} 23. Rae1 {[%clk 0:02:12.6]} 23... Qg3 {[%clk
0:01:37.8]} 24. Qf2 {[%clk 0:02:09.2]} 24... Qd6 {[%clk 0:01:35.5]} 25. Rd1
{[%clk 0:01:57.6]} 25... Ra5 {[%clk 0:01:33.2]} 26. Rxh8 {[%clk 0:01:54.5]}
26... Kxh8 {[%clk 0:01:32.4]} 27. Qh4+ {[%clk 0:01:51.6]} 27... Kg7 {[%clk
0:01:22.4]} 28. Rh1 {[%clk 0:01:41.3]} 28... Nh5 {[%clk 0:01:19.7]} 29. Rd1
{[%clk 0:01:17.6]} 29... Rb5 {[%clk 0:01:16.1]} 30. Rd2 {[%clk 0:01:15.6]} 30...
f5 {[%clk 0:01:07.4]} 31. Bb1 {[%clk 0:01:13.2]} 31... Nf6 {[%clk 0:00:50.2]}
32. Ba2 {[%clk 0:00:52.7]} 32... Qe5+ {[%clk 0:00:45.5]} 33. Kd1 {[%clk
0:00:49.3]} 33... Nxd5 {[%clk 0:00:41]} 34. Qxa4 {[%clk 0:00:33.7]} 34... Ne3+
{[%clk 0:00:33.8]} 35. Kc1 {[%clk 0:00:34.1]} 35... f4 {[%clk 0:00:32.6]} 36.
Qa8 {[%clk 0:00:17.9]} 36... Rc5 {[%clk 0:00:21.1]} 37. Qg8+ {[%clk 0:00:17.2]}
37... Kh6 {[%clk 0:00:21.1]} 38. Qf8+ {[%clk 0:00:17.5]} 38... Kg5 {[%clk
0:00:20.3]} 39. Kb1 {[%clk 0:00:14.7]} 39... Rb5 {[%clk 0:00:17.6]} 40. Ka1
{[%clk 0:00:11.3]} 40... Nf5 {[%clk 0:00:09.3]} 41. Rd1 {[%clk 0:00:10]} 41...
Qe2 {[%clk 0:00:08.5]} 42. Rb1 {[%clk 0:00:10.3]} 42... Qxg2 {[%clk 0:00:07.6]}
43. Bc4 {[%clk 0:00:07.6]} 43... Ra5 {[%clk 0:00:06.3]} 44. Bd3 {[%clk
0:00:07.4]} 44... Qxf3 {[%clk 0:00:02.9]} 45. Bxf5 {[%clk 0:00:07.7]} 45... Rxf5
{[%clk 0:00:03.4]} 46. Qxe7+ {[%clk 0:00:08.3]} 46... Kg4 {[%clk 0:00:03.1]} 47.
Rg1+ {[%clk 0:00:07.6]} 47... Kh3 {[%clk 0:00:03.1]} 48. Qe1 {[%clk 0:00:05]}
48... Rh5 {[%clk 0:00:00.2]} 49. Rxg6 {[%clk 0:00:04.1]} 1-0

[Event "*** Titled Tuesday Blitz"]
[Site "Chess.com"]
[Date "2021.03.02"]
[Round "4"]
[White "Trickster_Pony"]
[Black "Schack-Hugo"]
[Result "0-1"]
[WhiteElo "1444"]
[BlackElo "2233"]
[TimeControl "180+1"]
[EndTime "10:40:29 PST"]
[Termination "Schack-Hugo won on time"]

1. c4 {[%clk 0:03:00.9]} 1... c6 {[%clk 0:02:55.4]} 2. g3 {[%clk 0:02:59.9]}
2... d5 {[%clk 0:02:50.9]} 3. Bg2 {[%clk 0:02:59.3]} 3... Nf6 {[%clk 0:02:50.9]}
4. Nf3 {[%clk 0:02:58.3]} 4... Bf5 {[%clk 0:02:36]} 5. O-O {[%clk 0:02:56.4]}
5... e6 {[%clk 0:02:34]} 6. cxd5 {[%clk 0:02:52]} 6... exd5 {[%clk 0:02:30.1]}
7. d4 {[%clk 0:02:47.6]} 7... Nbd7 {[%clk 0:02:13.4]} 8. Nc3 {[%clk 0:02:46.2]}
8... Bd6 {[%clk 0:02:08.7]} 9. Bg5 {[%clk 0:02:18.3]} 9... h6 {[%clk 0:02:01.7]}
10. Bf4 {[%clk 0:02:11.9]} 10... Bxf4 {[%clk 0:01:56]} 11. gxf4 {[%clk
0:02:12.8]} 11... Ne4 {[%clk 0:01:48.6]} 12. Nxe4 {[%clk 0:02:02.5]} 12... Bxe4
{[%clk 0:01:42.2]} 13. Ne5 {[%clk 0:01:46.5]} 13... Bxg2 {[%clk 0:01:10.5]} 14.
Kxg2 {[%clk 0:01:47.4]} 14... Nxe5 {[%clk 0:01:06.7]} 15. fxe5 {[%clk
0:01:37.8]} 15... Qh4 {[%clk 0:00:51.5]} 16. Qb3 {[%clk 0:00:59]} 16... O-O
{[%clk 0:00:36.9]} 17. Rad1 {[%clk 0:00:47.9]} 17... f6 {[%clk 0:00:24.4]} 18.
exf6 {[%clk 0:00:30.1]} 18... Rxf6 {[%clk 0:00:25.3]} 19. Qg3 {[%clk 0:00:29.5]}
19... Qe4+ {[%clk 0:00:20]} 20. f3 {[%clk 0:00:18.4]} 20... Qxe2+ {[%clk
0:00:18.5]} 21. Kh1 {[%clk 0:00:18.7]} 21... Qxb2 {[%clk 0:00:08.5]} 22. Rg1
{[%clk 0:00:16.5]} 22... Rf7 {[%clk 0:00:08.3]} 23. Rde1 {[%clk 0:00:13.4]}
23... Qc3 {[%clk 0:00:05.7]} 24. Ref1 {[%clk 0:00:09.1]} 24... Qxd4 {[%clk
0:00:05.3]} 25. Rf2 {[%clk 0:00:08.7]} 25... Raf8 {[%clk 0:00:04.7]} 26. Rfg2
{[%clk 0:00:07.8]} 26... Qf6 {[%clk 0:00:03.7]} 27. Rf1 {[%clk 0:00:04.5]} 27...
Qf4 {[%clk 0:00:02]} 28. Qxf4 {[%clk 0:00:03.9]} 28... Rxf4 {[%clk 0:00:01.9]}
29. Rfg1 {[%clk 0:00:03]} 29... R4f7 {[%clk 0:00:02.8]} 30. Rg3 {[%clk
0:00:02.8]} 30... Kh7 {[%clk 0:00:03.7]} 31. Kg2 {[%clk 0:00:02.8]} 31... Rg8
{[%clk 0:00:04.6]} 32. Rb1 {[%clk 0:00:02.2]} 32... g6 {[%clk 0:00:05.5]} 33.
Rb4 {[%clk 0:00:02.2]} 33... Rgg7 {[%clk 0:00:06.4]} 34. Ra4 {[%clk 0:00:02.3]}
34... a6 {[%clk 0:00:06.2]} 35. Rb4 {[%clk 0:00:02.2]} 35... b5 {[%clk
0:00:06.5]} 36. Rb3 {[%clk 0:00:02.3]} 36... c5 {[%clk 0:00:06.8]} 37. Rc3
{[%clk 0:00:02.4]} 37... c4 {[%clk 0:00:06.9]} 38. Rc1 {[%clk 0:00:02.1]} 38...
d4 {[%clk 0:00:07.1]} 39. Rd1 {[%clk 0:00:02.1]} 39... d3 {[%clk 0:00:07.6]} 40.
Kf2 {[%clk 0:00:02.5]} 40... Re7 {[%clk 0:00:07.5]} 41. Re1 {[%clk 0:00:01.7]}
41... Rxe1 {[%clk 0:00:07.5]} 42. Kxe1 {[%clk 0:00:02.4]} 42... Re7+ {[%clk
0:00:08.2]} 43. Kd2 {[%clk 0:00:02.7]} 43... Re2+ {[%clk 0:00:08]} 44. Kc3
{[%clk 0:00:03.1]} 44... Rc2+ {[%clk 0:00:08]} 45. Kd4 {[%clk 0:00:03.8]} 45...
d2 {[%clk 0:00:08.4]} 46. Rg1 {[%clk 0:00:03.6]} 46... Rc1 {[%clk 0:00:08.7]}
47. Rg2 {[%clk 0:00:02]} 47... d1=Q+ {[%clk 0:00:08.5]} 48. Kc5 {[%clk
0:00:02.7]} 48... Rc2 {[%clk 0:00:08.1]} 49. Rg4 {[%clk 0:00:02.3]} 49... Qxf3
{[%clk 0:00:05.3]} 50. Rd4 {[%clk 0:00:02.4]} 50... Qe3 {[%clk 0:00:01.7]} 0-1

[Event "*** Titled Tuesday Blitz"]
[Site "Chess.com"]
[Date "2021.03.02"]
[Round "4"]
[White "B-man"]
[Black "Aisen1011"]
[Result "0-1"]
[WhiteElo "2541"]
[BlackElo "2239"]
[TimeControl "180+1"]
[EndTime "10:40:30 PST"]
[Termination "Aisen1011 won on time"]

1. e4 {[%clk 0:03:00.9]} 1... e5 {[%clk 0:02:59.8]} 2. Nc3 {[%clk 0:02:58.5]}
2... Nc6 {[%clk 0:03:00.1]} 3. g3 {[%clk 0:02:57.6]} 3... g6 {[%clk 0:03:00.3]}
4. Bg2 {[%clk 0:02:57.5]} 4... Bg7 {[%clk 0:03:00.8]} 5. d3 {[%clk 0:02:51.3]}
5... Nge7 {[%clk 0:03:00.7]} 6. h4 {[%clk 0:02:48.1]} 6... h5 {[%clk 0:02:59.8]}
7. Nh3 {[%clk 0:02:46.2]} 7... d6 {[%clk 0:02:59.3]} 8. Ng5 {[%clk 0:02:44.9]}
8... Nd4 {[%clk 0:02:53.7]} 9. Be3 {[%clk 0:02:36.6]} 9... Ne6 {[%clk
0:02:51.3]} 10. Qd2 {[%clk 0:02:32]} 10... Nxg5 {[%clk 0:02:48.1]} 11. Bxg5
{[%clk 0:02:32.9]} 11... Be6 {[%clk 0:02:44.7]} 12. Nd5 {[%clk 0:02:25.5]} 12...
Bxd5 {[%clk 0:02:43.1]} 13. exd5 {[%clk 0:02:25.8]} 13... Qd7 {[%clk 0:02:37]}
14. Bh3 {[%clk 0:02:19.9]} 14... f5 {[%clk 0:02:36.5]} 15. c4 {[%clk 0:02:15.9]}
15... c6 {[%clk 0:02:33.5]} 16. Bg2 {[%clk 0:01:57]} 16... cxd5 {[%clk
0:02:30.7]} 17. Bxe7 {[%clk 0:01:56.6]} 17... Kxe7 {[%clk 0:02:12.4]} 18. Bxd5
{[%clk 0:01:56.2]} 18... Bh6 {[%clk 0:02:10.1]} 19. Qe2 {[%clk 0:01:38.7]} 19...
Rab8 {[%clk 0:02:07.7]} 20. d4 {[%clk 0:01:28.7]} 20... Kf6 {[%clk 0:02:04.3]}
21. dxe5+ {[%clk 0:01:24.1]} 21... dxe5 {[%clk 0:02:05.2]} 22. Rd1 {[%clk
0:01:19.5]} 22... Qc7 {[%clk 0:02:02.4]} 23. O-O {[%clk 0:01:13.3]} 23... Rhd8
{[%clk 0:02:02]} 24. Rfe1 {[%clk 0:01:11.8]} 24... e4 {[%clk 0:01:46.6]} 25. b4
{[%clk 0:00:39.8]} 25... e3 {[%clk 0:01:36.5]} 26. Kg2 {[%clk 0:00:34.5]} 26...
Re8 {[%clk 0:01:17.7]} 27. fxe3 {[%clk 0:00:31.2]} 27... Rxe3 {[%clk 0:00:57.9]}
28. Qb2+ {[%clk 0:00:30.7]} 28... Qe5 {[%clk 0:00:54]} 29. Qxe5+ {[%clk
0:00:30.4]} 29... Kxe5 {[%clk 0:00:46.9]} 30. Rxe3+ {[%clk 0:00:30.5]} 30...
Bxe3 {[%clk 0:00:47.8]} 31. Re1 {[%clk 0:00:30.2]} 31... Kd4 {[%clk 0:00:47.6]}
32. Kf3 {[%clk 0:00:29.4]} 32... Bd2 {[%clk 0:00:45.1]} 33. Rd1 {[%clk 0:00:17]}
33... Kc3 {[%clk 0:00:45.1]} 34. b5 {[%clk 0:00:16.9]} 34... b6 {[%clk
0:00:42.2]} 35. Bf7 {[%clk 0:00:14.2]} 35... Kc2 {[%clk 0:00:31.7]} 36. Ke2
{[%clk 0:00:11.2]} 36... Bc3 {[%clk 0:00:13.7]} 37. Rd7 {[%clk 0:00:09]} 37...
Rc8 {[%clk 0:00:05.9]} 38. Rxa7 {[%clk 0:00:05.5]} 38... Rc5 {[%clk 0:00:06.1]}
39. Bd5 {[%clk 0:00:05.2]} 39... Rc8 {[%clk 0:00:05.9]} 40. a4 {[%clk
0:00:05.2]} 40... Re8+ {[%clk 0:00:06]} 41. Kf3 {[%clk 0:00:05.8]} 41... Bd4
{[%clk 0:00:05.8]} 42. Rd7 {[%clk 0:00:04.6]} 42... Re3+ {[%clk 0:00:05.9]} 43.
Kf4 {[%clk 0:00:05.1]} 43... Kc3 {[%clk 0:00:02]} 44. Rd6 {[%clk 0:00:04]} 44...
Re1 {[%clk 0:00:01.6]} 45. Rxg6 {[%clk 0:00:03.8]} 45... Be5+ {[%clk 0:00:01.9]}
46. Kxf5 {[%clk 0:00:02.9]} 46... Re3 {[%clk 0:00:02.5]} 47. Re6 {[%clk
0:00:01.8]} 47... Kd4 {[%clk 0:00:01.5]} 48. Rxb6 {[%clk 0:00:01]} 48... Bxg3
{[%clk 0:00:01.9]} 0-1

[Event "*** Titled Tuesday Blitz"]
[Site "Chess.com"]
[Date "2021.03.02"]
[Round "4"]
[White "Moon_stone123"]
[Black "FredyMatsuura"]
[Result "1-0"]
[WhiteElo "2513"]
[BlackElo "2326"]
[TimeControl "180+1"]
[EndTime "10:40:31 PST"]
[Termination "Moon_stone123 won on time"]

1. e4 {[%clk 0:02:34.3]} 1... c5 {[%clk 0:02:56.1]} 2. Nf3 {[%clk 0:02:34.1]}
2... d6 {[%clk 0:02:55.1]} 3. d4 {[%clk 0:02:34.2]} 3... cxd4 {[%clk 0:02:55.2]}
4. Nxd4 {[%clk 0:02:35.1]} 4... Nf6 {[%clk 0:02:55]} 5. Nc3 {[%clk 0:02:35.7]}
5... e6 {[%clk 0:02:55.4]} 6. Bg5 {[%clk 0:02:34.8]} 6... Be7 {[%clk 0:02:54.2]}
7. Qd3 {[%clk 0:02:33.8]} 7... a6 {[%clk 0:02:47.5]} 8. O-O-O {[%clk 0:02:33.4]}
8... b5 {[%clk 0:02:45.2]} 9. a3 {[%clk 0:02:32.3]} 9... Bb7 {[%clk 0:02:44.7]}
10. f4 {[%clk 0:02:29.7]} 10... Nbd7 {[%clk 0:02:39.7]} 11. Qe3 {[%clk 0:02:21]}
11... Qc7 {[%clk 0:02:37.3]} 12. Be2 {[%clk 0:02:20.7]} 12... Rc8 {[%clk
0:02:29.1]} 13. Bf3 {[%clk 0:02:19.1]} 13... h6 {[%clk 0:02:15.9]} 14. Bh4
{[%clk 0:02:16.1]} 14... Nb6 {[%clk 0:01:56.2]} 15. Be2 {[%clk 0:01:40.4]} 15...
Nc4 {[%clk 0:01:47.8]} 16. Bxc4 {[%clk 0:01:38.5]} 16... Qxc4 {[%clk 0:01:47.8]}
17. f5 {[%clk 0:01:32.9]} 17... e5 {[%clk 0:01:38.2]} 18. Bxf6 {[%clk
0:01:32.8]} 18... Bxf6 {[%clk 0:01:32.6]} 19. Nf3 {[%clk 0:01:33.1]} 19... Be7
{[%clk 0:01:28.2]} 20. Qd3 {[%clk 0:01:17.1]} 20... O-O {[%clk 0:01:22.7]} 21.
Rhe1 {[%clk 0:01:14]} 21... b4 {[%clk 0:01:13.3]} 22. Qxc4 {[%clk 0:01:06.9]}
22... Rxc4 {[%clk 0:01:12.2]} 23. axb4 {[%clk 0:01:07.2]} 23... Rxb4 {[%clk
0:01:10.3]} 24. Nd5 {[%clk 0:01:05.7]} 24... Bxd5 {[%clk 0:01:09.5]} 25. Rxd5
{[%clk 0:01:06.1]} 25... Rc8 {[%clk 0:01:03.4]} 26. c3 {[%clk 0:00:59.6]} 26...
Ra4 {[%clk 0:01:00.7]} 27. Kc2 {[%clk 0:00:56.7]} 27... g6 {[%clk 0:00:58.4]}
28. g4 {[%clk 0:00:55.5]} 28... Kg7 {[%clk 0:00:51.3]} 29. Nd2 {[%clk
0:00:54.1]} 29... Rb8 {[%clk 0:00:32.3]} 30. Nb3 {[%clk 0:00:52.2]} 30... Rb6
{[%clk 0:00:19.2]} 31. Red1 {[%clk 0:00:51]} 31... Rxe4 {[%clk 0:00:18.3]} 32.
h3 {[%clk 0:00:47.3]} 32... gxf5 {[%clk 0:00:17.6]} 33. gxf5 {[%clk 0:00:48.2]}
33... Rf4 {[%clk 0:00:16.6]} 34. Nd2 {[%clk 0:00:45.7]} 34... Rxf5 {[%clk
0:00:13.7]} 35. Nc4 {[%clk 0:00:45.7]} 35... Rc6 {[%clk 0:00:12.5]} 36. Na5
{[%clk 0:00:43.1]} 36... Rf2+ {[%clk 0:00:11.6]} 37. Kc1 {[%clk 0:00:42.9]}
37... Rb6 {[%clk 0:00:09.8]} 38. Nc4 {[%clk 0:00:41.5]} 38... Rc6 {[%clk
0:00:08.3]} 39. Na5 {[%clk 0:00:41.4]} 39... Rc8 {[%clk 0:00:08.3]} 40. Rg1+
{[%clk 0:00:38.1]} 40... Kf6 {[%clk 0:00:06.9]} 41. Rd3 {[%clk 0:00:28.1]} 41...
Ke6 {[%clk 0:00:06.1]} 42. Kb1 {[%clk 0:00:27.3]} 42... Rb8 {[%clk 0:00:04.6]}
43. b4 {[%clk 0:00:24.5]} 43... e4 {[%clk 0:00:04.7]} 44. Rd4 {[%clk 0:00:24]}
44... d5 {[%clk 0:00:04.5]} 45. Nc6 {[%clk 0:00:21.1]} 45... Rb6 {[%clk
0:00:02.9]} 46. Nxe7 {[%clk 0:00:17.9]} 46... Kxe7 {[%clk 0:00:03.4]} 47. Rxd5
{[%clk 0:00:18.8]} 47... Re6 {[%clk 0:00:03.2]} 48. Rgd1 {[%clk 0:00:17.6]}
48... e3 {[%clk 0:00:03.2]} 49. Rd7+ {[%clk 0:00:15.6]} 49... Kf6 {[%clk
0:00:03.1]} 50. Kc1 {[%clk 0:00:16.1]} 50... e2 {[%clk 0:00:03.2]} 51. Re1
{[%clk 0:00:16.5]} 51... Ke5 {[%clk 0:00:02.2]} 52. Kd2 {[%clk 0:00:15.9]} 52...
Kf6 {[%clk 0:00:01]} 53. Rd4 {[%clk 0:00:13.5]} 1-0

[Event "*** Titled Tuesday Blitz"]
[Site "Chess.com"]
[Date "2021.03.02"]
[Round "4"]
[White "mjray79"]
[Black "Bongcloudtransvestit"]
[Result "1-0"]
[WhiteElo "2473"]
[BlackElo "2299"]
[TimeControl "180+1"]
[EndTime "10:40:31 PST"]
[Termination "mjray79 won on time"]

1. d4 {[%clk 0:03:00.9]} 1... Nf6 {[%clk 0:02:59.1]} 2. c4 {[%clk 0:03:01.4]}
2... e6 {[%clk 0:02:58.9]} 3. g3 {[%clk 0:03:00.4]} 3... b6 {[%clk 0:02:58.2]}
4. Bg2 {[%clk 0:02:58.9]} 4... c6 {[%clk 0:02:58.7]} 5. Nc3 {[%clk 0:02:53]}
5... Bb7 {[%clk 0:02:58.6]} 6. Nf3 {[%clk 0:02:50.4]} 6... d6 {[%clk 0:02:58.8]}
7. O-O {[%clk 0:02:50.4]} 7... Nbd7 {[%clk 0:02:59.2]} 8. e4 {[%clk 0:02:50.6]}
8... e5 {[%clk 0:02:58.7]} 9. Re1 {[%clk 0:02:42.8]} 9... Be7 {[%clk 0:02:56.1]}
10. Be3 {[%clk 0:02:27.3]} 10... O-O {[%clk 0:02:54.6]} 11. Qd2 {[%clk
0:02:17.2]} 11... Re8 {[%clk 0:02:53.2]} 12. Rad1 {[%clk 0:02:16.3]} 12... Qc7
{[%clk 0:02:52.8]} 13. b4 {[%clk 0:02:06.3]} 13... Bf8 {[%clk 0:02:44]} 14. Rc1
{[%clk 0:01:37.6]} 14... Rad8 {[%clk 0:02:37.7]} 15. Qc2 {[%clk 0:01:33]} 15...
Qb8 {[%clk 0:02:35.2]} 16. c5 {[%clk 0:01:25.9]} 16... exd4 {[%clk 0:02:15.1]}
17. Bxd4 {[%clk 0:01:23.6]} 17... bxc5 {[%clk 0:02:15.5]} 18. bxc5 {[%clk
0:01:23.3]} 18... dxc5 {[%clk 0:02:15.1]} 19. Be3 {[%clk 0:01:21.3]} 19... Ne5
{[%clk 0:02:10.8]} 20. Rb1 {[%clk 0:01:20]} 20... Nxf3+ {[%clk 0:02:04.3]} 21.
Bxf3 {[%clk 0:01:20.9]} 21... Qc8 {[%clk 0:02:03]} 22. Na4 {[%clk 0:01:16.4]}
22... Nd7 {[%clk 0:01:41.2]} 23. Nxc5 {[%clk 0:01:13.8]} 23... Nxc5 {[%clk
0:01:32.7]} 24. Bxc5 {[%clk 0:01:14.7]} 24... Bxc5 {[%clk 0:01:30.8]} 25. Qxc5
{[%clk 0:01:15.6]} 25... Ba6 {[%clk 0:01:31.3]} 26. Qxa7 {[%clk 0:01:13]} 26...
Rd7 {[%clk 0:01:25.1]} 27. Qc5 {[%clk 0:01:10.7]} 27... Bd3 {[%clk 0:01:24.3]}
28. Rbc1 {[%clk 0:01:05.3]} 28... Rc7 {[%clk 0:01:18.8]} 29. e5 {[%clk
0:01:02.9]} 29... Bb5 {[%clk 0:01:09.7]} 30. Re4 {[%clk 0:01:00.6]} 30... Qa6
{[%clk 0:01:03.9]} 31. Ra1 {[%clk 0:00:53.7]} 31... Ba4 {[%clk 0:00:59.1]} 32.
Be2 {[%clk 0:00:49.1]} 32... Qa8 {[%clk 0:00:56.4]} 33. Bc4 {[%clk 0:00:38.8]}
33... Bc2 {[%clk 0:00:51.1]} 34. Re2 {[%clk 0:00:34.9]} 34... Bg6 {[%clk
0:00:50.7]} 35. a4 {[%clk 0:00:33.4]} 35... h5 {[%clk 0:00:39.6]} 36. e6 {[%clk
0:00:33.1]} 36... Rf8 {[%clk 0:00:35.2]} 37. a5 {[%clk 0:00:21.5]} 37... h4
{[%clk 0:00:34.9]} 38. e7 {[%clk 0:00:20]} 38... Re8 {[%clk 0:00:34.4]} 39. a6
{[%clk 0:00:20]} 39... Ra7 {[%clk 0:00:31.1]} 40. g4 {[%clk 0:00:15.6]} 40...
Qc8 {[%clk 0:00:24.7]} 41. h3 {[%clk 0:00:13.6]} 41... Ra8 {[%clk 0:00:24.4]}
42. a7 {[%clk 0:00:13.3]} 42... Qc7 {[%clk 0:00:24.1]} 43. Rae1 {[%clk
0:00:10.8]} 43... Qf4 {[%clk 0:00:23.1]} 44. Qxc6 {[%clk 0:00:09.4]} 44... Kh7
{[%clk 0:00:17]} 45. Qxa8 {[%clk 0:00:07.3]} 45... Rxa8 {[%clk 0:00:16.3]} 46.
e8=Q {[%clk 0:00:08.2]} 46... Rxa7 {[%clk 0:00:14.1]} 47. Qe3 {[%clk 0:00:06.7]}
47... Qc7 {[%clk 0:00:13.1]} 48. Bd3 {[%clk 0:00:06.7]} 48... Ra6 {[%clk
0:00:07.8]} 49. Bxa6 {[%clk 0:00:06.2]} 49... Qb8 {[%clk 0:00:05.4]} 50. Bd3
{[%clk 0:00:06.1]} 50... Bxd3 {[%clk 0:00:04]} 51. Qxd3+ {[%clk 0:00:07]} 51...
Kh6 {[%clk 0:00:04.6]} 52. Qd4 {[%clk 0:00:05.6]} 52... Qb7 {[%clk 0:00:04]} 53.
Qe4 {[%clk 0:00:05.1]} 53... Qd7 {[%clk 0:00:02.6]} 54. g5+ {[%clk 0:00:04.9]}
1-0